fUST/lending_fUST_20250604
["ID","MTS","AMOUNT","RATE_DAILY","PERIOD"]
[364039126,1748973040640,-440.0,0.00017164,2]
[364039127,1748973040650,-440.0,0.00017164,2]
[364039129,1748973040660,-440.0,0.00017164,2]
[364039130,1748973040670,-440.0,0.00017164,2]
[364039131,1748973040680,-440.0,0.00017164,2]
[364039132,1748973040690,-440.0,0.00017164,2]
[364039133,1748973040699,-440.0,0.00017164,2]
[364039134,1748973040709,-440.0,0.00017164,2]
[364039136,1748973040719,-440.0,0.00017164,2]
[364039138,1748973040729,-440.0,0.00017164,2]
[364039140,1748973040739,-440.0,0.00017164,2]
[364039142,1748973040748,-440.0,0.00017164,2]
[364039144,1748973040757,-440.0,0.00017164,2]
[364039145,1748973040767,-492.42,0.00017164,2]
[364039146,1748973040777,-440.0,0.00017164,2]
[364039147,1748973040787,-440.0,0.00017164,2]
[364039148,1748973040797,-465.46,0.00017164,2]
[364039149,1748973040806,-440.0,0.00017164,2]
[364039150,1748973040816,-172.33,0.00017164,2]
[364039151,1748973040825,-440.0,0.00017164,2]
[364039152,1748973040834,-440.0,0.00017164,2]
[364039153,1748973040842,-330.42168222,0.00017164,2]
[364039154,1748973040858,-506.24617768,0.00017164,2]
[364039155,1748973040869,-440.0,0.00017164,2]
[364039156,1748973040880,-920.64,0.00017164,2]
[364039157,1748973040889,-440.0,0.00017164,2]
[364039158,1748973040899,-440.0,0.00017164,2]
[364039159,1748973040909,-440.0,0.00017164,2]
[364039160,1748973040921,-440.0,0.00017164,2]
[364039161,1748973040931,-440.0,0.00017164,2]
[364039162,1748973040940,-440.0,0.00017164,2]
[364039163,1748973040950,-440.0,0.00017164,2]
[364039164,1748973040960,-246.438352,0.00017167,2]
[364039165,1748973040970,-246.438352,0.00017167,2]
[364039166,1748973040979,-151.0,0.00017167,2]
[364039167,1748973040989,-481.24314168,0.0001717,2]
[364039168,1748973041133,-440.0,0.0001717,2]
[364039169,1748973041145,-246.438352,0.0001717,2]
[364039170,1748973041156,-246.438352,0.0001717,2]
[364039171,1748973041166,-246.438352,0.0001717,2]
[364039172,1748973041176,-246.438352,0.0001717,2]
[364039173,1748973041186,-526.588079,0.0001717,2]
[364039174,1748973041196,-526.588079,0.0001717,2]
[364039175,1748973041211,-151.0,0.0001717,2]
[364039176,1748973041221,-293.220748,0.0001717,2]
[364039177,1748973041230,-526.588079,0.00017171,2]
[364039178,1748973041241,-526.588079,0.00017171,2]
[364039179,1748973041253,-696.77674388,0.00017176,2]
[364039180,1748973041262,-440.0,0.0001726,2]
[364039181,1748973041272,-440.0,0.0001726,2]
[364039182,1748973041284,-400.0,0.0001726,2]
[364039183,1748973041294,-815.25,0.0001726,2]
[364039184,1748973041303,-440.0,0.0001726,2]
[364039185,1748973041312,-440.0,0.0001726,2]
[364039186,1748973041321,-440.0,0.0001726,2]
[364039187,1748973041329,-440.0,0.0001726,2]
[364039188,1748973041338,-991.19,0.0001726,2]
[364039189,1748973041348,-526.0,0.0001726,2]
[364039190,1748973041358,-440.0,0.0001726,2]
[364039191,1748973041367,-440.0,0.0001726,2]
[364039192,1748973041377,-504.75463703,0.00017266,2]
[364039193,1748973041387,-420.0,0.00017363,2]
[364039194,1748973041396,-420.0,0.00017364,2]
[364039195,1748973041406,-420.0,0.00017364,2]
[364039196,1748973041416,-420.0,0.00017364,2]
[364039197,1748973041427,-1048.31326297,0.00017415,2]
[364039198,1748973041438,-440.0,0.00017419,2]
[364039199,1748973041447,-440.0,0.00017419,2]
[364039200,1748973041457,-440.0,0.00017419,2]
[364039201,1748973041469,-440.0,0.00017419,2]
[364039202,1748973041479,-410.0,0.00017419,2]
[364039203,1748973041489,-440.0,0.00017419,2]
[364039204,1748973041498,-440.0,0.00017419,2]
[364039205,1748973041509,-440.0,0.0001742,2]
[364039206,1748973041518,-440.0,0.0001742,2]
[364039207,1748973041529,-440.0,0.0001742,2]
[364039208,1748973041538,-385.51665021,0.0001742,2]
[364039209,1748973041547,-440.0,0.0001742,2]
[364039210,1748973041557,-587.09661454,0.0001742,2]
[364039211,1748973041567,-488.43621285,0.0001742,2]
[364039212,1748973041577,-440.0,0.0001742,2]
[364039213,1748973041587,-440.0,0.0001742,2]
[364039214,1748973041597,-440.0,0.0001742,2]
[364039215,1748973041607,-440.0,0.0001742,2]
[364039216,1748973041616,-440.0,0.0001742,2]
[364039217,1748973041626,-440.0,0.0001742,2]
[364039218,1748973041636,-440.0,0.0001742,2]
[364039219,1748973041646,-440.0,0.0001742,2]
[364039220,1748973041655,-290.19929365,0.0001742,2]
[364039221,1748973041665,-410.0,0.0001742,2]
[364039222,1748973041676,-440.0,0.0001742,2]
[364039223,1748973041685,-440.0,0.0001742,2]
[364039224,1748973041695,-440.0,0.00017438,2]
[364039225,1748973041705,-440.0,0.00017438,2]
[364039226,1748973041715,-635.98,0.00017438,2]
[364039227,1748973041725,-440.0,0.00017438,2]
[364039228,1748973041735,-440.0,0.00017438,2]
[364039229,1748973041744,-440.0,0.00017438,2]
[364039230,1748973041754,-440.0,0.00017438,2]
[364039231,1748973041763,-440.0,0.00017438,2]
[364039232,1748973041773,-440.0,0.00017438,2]
[364039233,1748973041783,-440.0,0.00017438,2]
[364039234,1748973041792,-534.99,0.00017438,2]
[364039235,1748973041802,-440.0,0.00017438,2]
[364039236,1748973041811,-440.0,0.00017438,2]
[364039237,1748973041821,-440.0,0.00017438,2]
[364039238,1748973041830,-440.0,0.00017438,2]
[364039239,1748973041839,-440.0,0.00017438,2]
[364039240,1748973041848,-440.0,0.00017438,2]
[364039241,1748973041857,-440.0,0.00017438,2]
[364039242,1748973041867,-440.0,0.00017438,2]
[364039243,1748973041876,-440.0,0.00017438,2]
[364039244,1748973041885,-440.0,0.00017438,2]
[364039245,1748973041895,-440.0,0.00017438,2]
[364039246,1748973041904,-440.0,0.00017438,2]
[364039247,1748973041914,-492.42,0.00017438,2]
[364039248,1748973041923,-440.0,0.00017438,2]
[364039249,1748973041933,-440.0,0.00017438,2]
[364039250,1748973041942,-465.46,0.00017438,2]
[364039251,1748973041951,-440.0,0.00017438,2]
[364039252,1748973041962,-440.0,0.00017438,2]
[364039253,1748973041972,-440.0,0.00017438,2]
[364039254,1748973041981,-440.0,0.00017438,2]
[364039255,1748973041990,-920.64,0.00017438,2]
[364039256,1748973041999,-440.0,0.00017438,2]
[364039257,1748973042009,-440.0,0.00017438,2]
[364039258,1748973042018,-440.0,0.00017438,2]
[364039259,1748973042028,-440.0,0.00017438,2]
[364039260,1748973042037,-440.0,0.00017438,2]
[364039261,1748973042047,-440.0,0.00017438,2]
[364039262,1748973042056,-440.0,0.00017438,2]
[364039263,1748973042066,-440.0,0.00017444,2]
[364039264,1748973042076,-246.438352,0.00017444,2]
[364039265,1748973042086,-246.438352,0.00017444,2]
[364039266,1748973042095,-526.588079,0.00017444,2]
[364039267,1748973042105,-526.588079,0.00017444,2]
[364039268,1748973042114,-1212.0,0.00017451,2]
[364039269,1748973042123,-500.0,0.00017451,2]
[364039270,1748973042133,-500.0,0.00017451,2]
[364039271,1748973042143,-696.77674388,0.00017452,2]
[364039272,1748973042152,-400.0,0.00017534,2]
[364039273,1748973042162,-440.0,0.00017534,2]
[364039274,1748973042171,-815.25,0.00017534,2]
[364039275,1748973042181,-440.0,0.00017534,2]
[364039276,1748973042190,-440.0,0.00017534,2]
[364039277,1748973042201,-440.0,0.00017534,2]
[364039278,1748973042210,-440.0,0.00017534,2]
[364039279,1748973042219,-991.19,0.00017534,2]
[364039280,1748973042229,-526.0,0.00017534,2]
[364039281,1748973042238,-358.62724353,0.00017534,2]
[364039282,1748973042248,-440.0,0.00017534,2]
[364039283,1748973042257,-500.0,0.0001759,2]
[364039284,1748973042266,-500.0,0.0001759,2]
[364039285,1748973042276,-500.0,0.0001759,2]
[364039286,1748973042287,-158.24312294,0.0001759,2]
[364039287,1748973042297,-274.83774294,0.00017663,2]
[364039288,1748973042306,-440.0,0.00017693,2]
[364039289,1748973042316,-440.0,0.00017693,2]
[364039290,1748973042325,-440.0,0.00017693,2]
[364039291,1748973042335,-440.0,0.00017693,2]
[364039292,1748973042344,-162.12,0.00017693,2]
[364039293,1748973042354,-400.0,0.00017693,2]
[364039294,1748973042364,-440.0,0.00017694,2]
[364039295,1748973042374,-440.0,0.00017694,2]
[364039296,1748973042383,-440.0,0.00017694,2]
[364039297,1748973042393,-488.42862704,0.00017694,2]
[364039298,1748973042402,-490.0,0.00017694,2]
[364039299,1748973042412,-440.0,0.00017694,2]
[364039300,1748973042421,-400.0,0.00017694,2]
[364039301,1748973042431,-400.0,0.00017694,2]
[364039302,1748973042440,-440.0,0.00017694,2]
[364039303,1748973042449,-440.0,0.00017694,2]
[364039304,1748973042459,-160.03003315,0.00017694,2]
[364039305,1748973042469,-420.37450979,0.00017694,2]
[364039306,1748973042479,-440.0,0.00017694,2]
[364039307,1748973042489,-447.00502365,0.00017694,2]
[364039308,1748973042498,-548.75053903,0.00017712,2]
[364039309,1748973042508,-440.0,0.00017712,2]
[364039310,1748973042518,-635.98,0.00017712,2]
[364039311,1748973042528,-440.0,0.00017712,2]
[364039312,1748973042537,-440.0,0.00017712,2]
[364039313,1748973042546,-440.0,0.00017712,2]
[364039314,1748973042556,-440.0,0.00017712,2]
[364039315,1748973042566,-440.0,0.00017712,2]
[364039316,1748973042575,-213.25412715,0.00017712,2]
[364039317,1748973042585,-440.0,0.00017712,2]
[364039318,1748973042594,-534.99,0.00017712,2]
[364039319,1748973042604,-440.0,0.00017712,2]
[364039320,1748973042613,-440.0,0.00017712,2]
[364039321,1748973042623,-440.0,0.00017712,2]
[364039322,1748973042633,-440.0,0.00017712,2]
[364039323,1748973042642,-440.0,0.00017712,2]
[364039324,1748973042652,-440.0,0.00017712,2]
[364039325,1748973042662,-440.0,0.00017712,2]
[364039326,1748973042671,-380.0,0.00017712,2]
[364039327,1748973042681,-440.0,0.00017712,2]
[364039328,1748973042691,-440.0,0.00017712,2]
[364039329,1748973042701,-440.0,0.00017712,2]
[364039330,1748973042710,-440.0,0.00017712,2]
[364039331,1748973042720,-492.42,0.00017712,2]
[364039332,1748973042730,-440.0,0.00017712,2]
[364039333,1748973042740,-440.0,0.00017712,2]
[364039334,1748973042749,-465.46,0.00017712,2]
[364039335,1748973042760,-440.0,0.00017712,2]
[364039336,1748973042770,-440.0,0.00017712,2]
[364039337,1748973042779,-440.0,0.00017712,2]
[364039338,1748973042789,-440.0,0.00017712,2]
[364039339,1748973042799,-920.64,0.00017712,2]
[364039340,1748973042808,-440.0,0.00017712,2]
[364039341,1748973042817,-440.0,0.00017712,2]
[364039342,1748973042826,-440.0,0.00017712,2]
[364039343,1748973042835,-440.0,0.00017712,2]
[364039344,1748973042844,-440.0,0.00017712,2]
[364039345,1748973042854,-440.0,0.00017712,2]
[364039346,1748973042863,-440.0,0.00017712,2]
[364039347,1748973042872,-246.438352,0.00017715,2]
[364039348,1748973042882,-246.438352,0.00017715,2]
[364039349,1748973042892,-440.0,0.00017718,2]
[364039350,1748973042901,-246.438352,0.00017718,2]
[364039351,1748973042910,-246.438357,0.00017718,2]
[364039352,1748973042920,-526.588079,0.00017718,2]
[364039353,1748973042929,-526.588079,0.00017718,2]
[364039354,1748973042939,-168.70724233,0.00017718,2]
[364039355,1748973042948,-372.48068192,0.00017718,2]
[364039356,1748973042960,-696.77674388,0.00017728,2]
[364039357,1748973042970,-502.80724021,0.00017774,2]
[364039358,1748973042980,-500.0,0.00017776,2]
[364039359,1748973042991,-160.74937374,0.00017776,2]
[364039360,1748973043001,-500.0,0.00017776,2]
[364039361,1748973043014,-440.0,0.00017808,2]
[364039362,1748973043025,-815.25,0.00017808,2]
[364039363,1748973043036,-440.0,0.00017808,2]
[364039364,1748973043045,-440.0,0.00017808,2]
[364039365,1748973043055,-440.0,0.00017808,2]
[364039366,1748973043065,-440.0,0.00017808,2]
[364039367,1748973043074,-991.19,0.00017808,2]
[364039368,1748973043084,-526.0,0.00017808,2]
[364039369,1748973043093,-440.0,0.00017808,2]
[364039370,1748973043103,-244.29061894,0.00017939,2]
[364039371,1748973043112,-178.32876422,0.00017967,2]
[364039372,1748973043122,-440.0,0.00017967,2]
[364039373,1748973043131,-440.0,0.00017967,2]
[364039374,1748973043141,-440.0,0.00017967,2]
[364039376,1748973043151,-440.0,0.00017968,2]
[364039377,1748973043160,-440.0,0.00017968,2]
[364039378,1748973043169,-440.0,0.00017968,2]
[364039379,1748973043178,-518.5210037,0.00017968,2]
[364039380,1748973043188,-440.0,0.00017968,2]
[364039381,1748973043199,-440.0,0.00017968,2]
[364039382,1748973043211,-440.0,0.00017968,2]
[364039383,1748973043222,-440.0,0.00017986,2]
[364039384,1748973043231,-635.98,0.00017986,2]
[364039385,1748973043241,-440.0,0.00017986,2]
[364039386,1748973043250,-440.0,0.00017986,2]
[364039387,1748973043260,-440.0,0.00017986,2]
[364039388,1748973043270,-213.62,0.00017986,2]
[364039389,1748973043282,-430.0,0.00017986,2]
[364039390,1748973043292,-509.45,0.00017986,2]
[364039391,1748973043302,-534.99,0.00017986,2]
[364039393,1748973043311,-440.0,0.00017986,2]
[364039395,1748973043321,-440.0,0.00017986,2]
[364039396,1748973043331,-440.0,0.00017986,2]
[364039397,1748973043342,-440.0,0.00017986,2]
[364039398,1748973043352,-440.0,0.00017986,2]
[364039400,1748973043361,-440.0,0.00017986,2]
[364039401,1748973043371,-440.0,0.00017986,2]
[364039403,1748973043381,-440.0,0.00017986,2]
[364039404,1748973043392,-440.0,0.00017986,2]
[364039405,1748973043404,-440.0,0.00017986,2]
[364039407,1748973043413,-440.0,0.00017986,2]
[364039408,1748973043422,-492.42,0.00017986,2]
[364039410,1748973043431,-440.0,0.00017986,2]
[364039412,1748973043440,-440.0,0.00017986,2]
[364039413,1748973043449,-465.46,0.00017986,2]
[364039414,1748973043459,-440.0,0.00017986,2]
[364039415,1748973043469,-440.0,0.00017986,2]
[364039416,1748973043478,-440.0,0.00017986,2]
[364039417,1748973043488,-440.0,0.00017986,2]
[364039418,1748973043497,-920.64,0.00017986,2]
[364039419,1748973043507,-440.0,0.00017986,2]
[364039420,1748973043517,-313.78525752,0.00017986,2]
[364039421,1748973043526,-440.0,0.00017986,2]
[364039423,1748973043535,-440.0,0.00017986,2]
[364039424,1748973043544,-151.57,0.00017986,2]
[364039425,1748973043553,-440.0,0.00017986,2]
[364039426,1748973043562,-440.0,0.00017986,2]
[364039427,1748973043572,-526.588079,0.00017991,2]
[364039429,1748973043581,-526.588079,0.00017991,2]
[364039431,1748973043591,-842.5625,0.00017992,3]
[364039432,1748973043600,-160.0,0.00017992,3]
[364039433,1748973043610,-380.0,0.00017992,2]
[364039434,1748973043619,-696.77674388,0.00018003,2]
[364039436,1748973043628,-440.0,0.00018082,2]
[364039437,1748973043637,-815.25,0.00018082,2]
[364039438,1748973043647,-440.0,0.00018082,2]
[364039439,1748973043656,-440.0,0.00018082,2]
[364039440,1748973043665,-440.0,0.00018082,2]
[364039441,1748973043675,-504.4034213,0.00018082,2]
[364039442,1748973043685,-991.19,0.00018082,2]
[364039443,1748973043694,-526.0,0.00018082,2]
[364039444,1748973043704,-440.0,0.00018082,2]
[364039445,1748973043713,-526.588079,0.00018154,2]
[364039446,1748973043722,-526.588079,0.00018154,2]
[364039447,1748973043731,-486.416214,0.00018155,2]
[364039448,1748973043741,-486.416214,0.00018155,2]
[364039449,1748973043750,-486.416214,0.00018155,2]
[364039450,1748973043759,-486.416214,0.00018155,2]
[364039451,1748973043768,-1074.285444,0.00018155,2]
[364039453,1748973043777,-1074.285444,0.00018155,2]
[364039454,1748973043787,-1074.285444,0.00018155,2]
[364039455,1748973043796,-1074.285444,0.00018155,2]
[364039456,1748973043806,-151.0,0.00018155,2]
[364039458,1748973043816,-151.0,0.00018155,2]
[364039459,1748973043825,-486.416214,0.00018166,2]
[364039460,1748973043834,-486.416214,0.00018166,2]
[364039461,1748973043843,-1074.285444,0.00018166,2]
[364039462,1748973043852,-1074.285444,0.00018166,2]
[364039463,1748973043862,-151.0,0.00018166,2]
[364039464,1748973043871,-526.588079,0.00018166,2]
[364039465,1748973043880,-526.588084,0.00018166,2]
[364039466,1748973043889,-218.415948,0.00018166,2]
[364039467,1748973043898,-151.0,0.00018166,2]
[364039468,1748973043908,-500.0,0.00018166,2]
[364039469,1748973043917,-486.416214,0.00018167,2]
[364039470,1748973043926,-486.416214,0.00018167,2]
[364039471,1748973043935,-1074.285444,0.00018167,2]
[364039472,1748973043944,-1074.285444,0.00018167,2]
[364039473,1748973043954,-151.0,0.00018167,2]
[364039474,1748973043963,-486.416214,0.00018168,2]
[364039475,1748973043973,-486.416214,0.00018168,2]
[364039476,1748973043982,-1074.285444,0.00018168,2]
[364039477,1748973043992,-1074.285444,0.00018168,2]
[364039478,1748973044002,-158.762359,0.00018168,2]
[364039479,1748973044011,-500.0,0.00018193,2]
[364039480,1748973044020,-500.0,0.00018221,2]
[364039481,1748973044030,-518.27273572,0.00018241,2]
[364039482,1748973044039,-440.0,0.00018241,2]
[364039483,1748973044050,-440.0,0.00018241,2]
[364039484,1748973044059,-216.6875179,0.00018242,2]
[364039485,1748973044068,-440.0,0.00018242,2]
[364039486,1748973044077,-440.0,0.00018242,2]
[364039487,1748973044087,-440.0,0.00018242,2]
[364039488,1748973044096,-440.0,0.00018242,2]
[364039489,1748973044106,-440.0,0.00018242,2]
[364039490,1748973044116,-500.0,0.00018248,2]
[364039491,1748973044125,-440.0,0.0001826,2]
[364039492,1748973044134,-635.98,0.0001826,2]
[364039493,1748973044144,-420.0,0.0001826,2]
[364039494,1748973044153,-440.0,0.0001826,2]
[364039495,1748973044164,-440.0,0.0001826,2]
[364039496,1748973044173,-534.99,0.0001826,2]
[364039497,1748973044184,-440.0,0.0001826,2]
[364039498,1748973044194,-440.0,0.0001826,2]
[364039499,1748973044209,-430.0,0.0001826,2]
[364039500,1748973044220,-451.9210257,0.0001826,2]
[364039501,1748973044230,-440.0,0.0001826,2]
[364039502,1748973044240,-440.0,0.0001826,2]
[364039503,1748973044250,-440.0,0.0001826,2]
[364039504,1748973044260,-440.0,0.0001826,2]
[364039505,1748973044269,-440.0,0.0001826,2]
[364039506,1748973044280,-440.0,0.0001826,2]
[364039507,1748973044290,-440.0,0.0001826,2]
[364039508,1748973044300,-492.42,0.0001826,2]
[364039509,1748973044424,-440.0,0.0001826,2]
[364039510,1748973044434,-440.0,0.0001826,2]
[364039511,1748973044444,-465.46,0.0001826,2]
[364039512,1748973044456,-559.00327283,0.0001826,2]
[364039513,1748973044470,-440.0,0.0001826,2]
[364039514,1748973044480,-440.0,0.0001826,2]
[364039515,1748973044490,-339.73,0.0001826,2]
[364039516,1748973044500,-920.64,0.0001826,2]
[364039517,1748973044511,-440.0,0.0001826,2]
[364039518,1748973044522,-440.0,0.0001826,2]
[364039519,1748973044532,-440.0,0.0001826,2]
[364039520,1748973044542,-440.0,0.0001826,2]
[364039521,1748973044551,-552.02,0.0001826,2]
[364039522,1748973044561,-160.0,0.00018263,2]
[364039523,1748973044571,-486.416214,0.00018267,2]
[364039524,1748973044580,-486.416214,0.00018267,2]
[364039525,1748973044591,-1074.285444,0.00018267,2]
[364039526,1748973044600,-1074.285444,0.00018267,2]
[364039527,1748973044611,-696.77674388,0.00018279,2]
[364039528,1748973044622,-410.0,0.00018356,2]
[364039529,1748973044632,-815.25,0.00018356,2]
[364039530,1748973044642,-440.0,0.00018356,2]
[364039531,1748973044653,-440.0,0.00018356,2]
[364039532,1748973044664,-440.0,0.00018356,2]
[364039533,1748973044675,-991.19,0.00018356,2]
[364039534,1748973044685,-526.0,0.00018356,2]
[364039535,1748973044695,-440.0,0.00018356,2]
[364039536,1748973044704,-486.416214,0.00018441,2]
[364039537,1748973044714,-486.416214,0.00018441,2]
[364039538,1748973044724,-1074.285444,0.00018441,2]
[364039539,1748973044733,-1074.285444,0.00018441,2]
[364039540,1748973044743,-486.416214,0.00018442,2]
[364039541,1748973044752,-486.416214,0.00018442,2]
[364039542,1748973044762,-1074.285444,0.00018442,2]
[364039543,1748973044771,-1074.285444,0.00018442,2]
[364039544,1748973044782,-440.0,0.00018515,2]
[364039545,1748973044792,-534.38,0.00018515,2]
[364039546,1748973044802,-440.0,0.00018516,2]
[364039547,1748973044811,-440.0,0.00018516,2]
[364039548,1748973044821,-440.0,0.00018516,2]
[364039549,1748973044833,-440.0,0.00018516,2]
[364039550,1748973044843,-411.21789978,0.00018516,2]
[364039551,1748973044852,-479.52735791,0.00018521,2]
[364039552,1748973044862,-440.0,0.00018534,2]
[364039553,1748973044872,-635.98,0.00018534,2]
[364039554,1748973044882,-440.0,0.00018534,2]
[364039555,1748973044892,-440.0,0.00018534,2]
[364039556,1748973044902,-534.99,0.00018534,2]
[364039557,1748973044912,-440.0,0.00018534,2]
[364039558,1748973044922,-440.0,0.00018534,2]
[364039559,1748973044932,-257.01,0.00018534,2]
[364039560,1748973044942,-440.0,0.00018534,2]
[364039561,1748973044952,-440.0,0.00018534,2]
[364039562,1748973044962,-177.82102879,0.00018534,2]
[364039563,1748973044973,-440.0,0.00018534,2]
[364039564,1748973044983,-440.0,0.00018534,2]
[364039565,1748973044992,-440.0,0.00018534,2]
[364039566,1748973045003,-492.42,0.00018534,2]
[364039567,1748973045013,-440.0,0.00018534,2]
[364039568,1748973045023,-440.0,0.00018534,2]
[364039569,1748973045032,-465.46,0.00018534,2]
[364039570,1748973045042,-440.0,0.00018534,2]
[364039571,1748973045052,-461.35,0.00018534,2]
[364039572,1748973045062,-920.64,0.00018534,2]
[364039573,1748973045072,-440.0,0.00018534,2]
[364039574,1748973045082,-440.0,0.00018534,2]
[364039575,1748973045092,-457.34,0.00018534,2]
[364039576,1748973045102,-440.0,0.00018534,2]
[364039577,1748973045112,-696.77674388,0.00018555,2]
[364039578,1748973045123,-815.25,0.0001863,2]
[364039579,1748973045133,-440.0,0.0001863,2]
[364039580,1748973045144,-440.0,0.0001863,2]
[364039581,1748973045154,-440.0,0.0001863,2]
[364039582,1748973045165,-991.19,0.0001863,2]
[364039583,1748973045175,-526.0,0.0001863,2]
[364039584,1748973045186,-440.0,0.0001863,2]
[364039585,1748973045196,-486.416214,0.00018714,2]
[364039586,1748973045212,-486.416214,0.00018714,2]
[364039587,1748973045224,-1074.285444,0.00018714,2]
[364039588,1748973045234,-1074.285444,0.00018714,2]
[364039589,1748973045245,-486.416214,0.00018715,2]
[364039590,1748973045254,-486.416219,0.00018715,2]
[364039591,1748973045264,-1074.285444,0.00018715,2]
[364039592,1748973045275,-1074.285438,0.00018715,2]
[364039593,1748973045285,-440.0,0.00018789,2]
[364039594,1748973045295,-327.9476566,0.0001879,2]
[364039595,1748973045305,-440.0,0.0001879,2]
[364039596,1748973045315,-440.0,0.0001879,2]
[364039597,1748973045324,-306.37214809,0.0001879,2]
[364039598,1748973045334,-440.0,0.00018808,2]
[364039599,1748973045343,-635.98,0.00018808,2]
[364039600,1748973045352,-440.0,0.00018808,2]
[364039601,1748973045362,-440.0,0.00018808,2]
[364039602,1748973045372,-534.99,0.00018808,2]
[364039603,1748973045381,-440.0,0.00018808,2]
[364039604,1748973045391,-440.0,0.00018808,2]
[364039605,1748973045401,-440.0,0.00018808,2]
[364039606,1748973045411,-440.0,0.00018808,2]
[364039607,1748973045420,-440.0,0.00018808,2]
[364039608,1748973045429,-440.0,0.00018808,2]
[364039609,1748973045439,-440.0,0.00018808,2]
[364039610,1748973045448,-492.42,0.00018808,2]
[364039611,1748973045457,-440.0,0.00018808,2]
[364039612,1748973045467,-440.0,0.00018808,2]
[364039613,1748973045476,-465.46,0.00018808,2]
[364039614,1748973045486,-440.0,0.00018808,2]
[364039615,1748973045496,-920.64,0.00018808,2]
[364039616,1748973045505,-440.0,0.00018808,2]
[364039617,1748973045515,-501.61,0.00018808,2]
[364039618,1748973045525,-440.0,0.00018808,2]
[364039619,1748973045535,-696.77674388,0.00018831,2]
[364039620,1748973045544,-593.95616419,0.000189,2]
[364039621,1748973045553,-815.25,0.00018904,2]
[364039622,1748973045562,-440.0,0.00018904,2]
[364039623,1748973045571,-440.0,0.00018904,2]
[364039624,1748973045581,-440.0,0.00018904,2]
[364039625,1748973045591,-991.19,0.00018904,2]
[364039626,1748973045601,-526.0,0.00018904,2]
[364039627,1748973045612,-440.0,0.00018904,2]
[364039628,1748973045623,-193.0,0.00018986,2]
[364039629,1748973045633,-465.0,0.00018987,2]
[364039630,1748973045644,-587.0,0.00018987,2]
[364039631,1748973045655,-440.0,0.00019063,2]
[364039632,1748973045666,-440.0,0.00019064,2]
[364039633,1748973045677,-440.0,0.00019064,2]
[364039634,1748973045687,-440.0,0.00019082,2]
[364039635,1748973045697,-635.98,0.00019082,2]
[364039636,1748973045707,-440.0,0.00019082,2]
[364039637,1748973045716,-440.0,0.00019082,2]
[364039638,1748973045726,-534.99,0.00019082,2]
[364039639,1748973045736,-440.0,0.00019082,2]
[364039640,1748973045746,-440.0,0.00019082,2]
[364039641,1748973045756,-440.0,0.00019082,2]
[364039642,1748973045766,-440.0,0.00019082,2]
[364039643,1748973045775,-440.0,0.00019082,2]
[364039644,1748973045785,-494.79,0.00019082,2]
[364039645,1748973045795,-440.0,0.00019082,2]